Workbook

Sheet Donnees
A1: Familles | B1: Tonnage (kg) | C1: lavage | D1: Unité de lavage (Kg) | E1: TcycleL en min | F1: Séchoir | G1: TcycleS en min | H1: Calandre | I1: TcycleC en min | J1: TempsTraitement (min)
A2: alése abs PE | B2: 970.4964851 | C2: Kannegiesser | D2: 53 | E2: 0.001157407407 | F2: 2 | G2: 0.01597222222 | H2: Plat5 | I2: =0.180772645772899*60 -> 10.84635875 | J2: 10.60125921 | L2: TBL | N2: lavage | O2: Étiquettes de lignes | P2: Somme de Poids livré en kg | Q2: Cadencement réel | R2: nombre de passes | S2: cadencement nominal | T2: C | U2: Cadencement
A3: alése abs PM | B3: 2078.29614 | C3: Kannegiesser | D3: 53 | E3: 0.001157407407 | F3: 2 | G3: 0.01597222222 | H3: Plat6 | I3: =0.180772645772899*60 -> 10.84635875 | J3: 15.23389385 | L3: Étiquettes de lignes | M3: Somme de Tonnage (kg) | N3: Kannegeisser | O3: Plat2 | P3: 92009.71357 | Q3: =P3/$P$8 -> 0.2609567821 | R3: 1.5 | S3: =R3/$R$8 -> 0.3 | T3: 1 | U3: Plat2 | X3: 5
A4: Bavoir | B4: 2107.719289 | C4: Kannegiesser | D4: 53 | E4: 0.001157407407 | F4: 2 | G4: 0.01597222222 | H4: Plat5 | I4: =0.6432684514067*60 -> 38.59610708 | J4: 36.12996622 | L4: Plat2 | M4: 92009.71357 | N4: Kannegeisser | O4: Plat3 | P4: 49855.89426 | Q4: 0.1414006547 | R4: 0.5 | S4: 0.1 | T4: 2 | U4: Plat2
A5: chmal PE | B5: 1567.725091 | C5: Kannegiesser | D5: 53 | E5: 0.001157407407 | F5: 2 | G5: 0.01597222222 | H5: Plat5 | I5: =1.08175626590084*60 -> 64.90537595 | J5: 17.87005156 | L5: Plat3 | M5: 49855.89426 | N5: Kannegeisser | O5: Plat4 | P5: 29070.53314 | Q5: 0.08244947719 | R5: 0.5 | S5: 0.1 | T5: 3 | U5: Plat3
A6: chmal PM | B6: 4991.781488 | C6: Kannegiesser | D6: 53 | E6: 0.001157407407 | F6: 2 | G6: 0.01597222222 | H6: Plat6 | I6: =0.2395266*60 -> 14.371596 | J6: 25.67906917 | L6: Plat4 | M6: 29070.53314 | N6: Kannegeisser | O6: Plat5 | P6: 62317.57007 | Q6: 0.1767443015 | R6: 1 | S6: 0.2 | T6: 4 | U6: Plat4
A7: chp grd | B7: 52.20218123 | C7: Kannegiesser | D7: 53 | E7: 0.001157407407 | F7: 0 | G7: 0 | H7: Plat4 | I7: =0.671067724684033*60 -> 40.26406348 | J7: 42.67990729 | L7: Plat5 | M7: 62317.57007 | N7: Kannegeisser | O7: Plat6 | P7: 119332.3105 | Q7: 0.3384487846 | R7: 1.5 | S7: 0.3 | T7: 5 | U7: Plat5
A8: chp petit | B8: 187.0155813 | C8: Kannegiesser | D8: 53 | E8: 0.001157407407 | F8: 0 | G8: 0 | H8: Plat4 | I8: =1.11755420367565*60 -> 67.05325222 | J8: 71.07644735 | L8: Plat6 | M8: 119332.3105 | N8: Total | P8: =SUM(P3:P7) -> 352586.0215 | Q8: 1 | R8: =SUM(R3:R7) -> 5 | S8: 1 | T8: 6 | U8: Plat6
A9: drap 1/2 | B9: 660.636342 | C9: Kannegiesser | D9: 53 | E9: 0.001157407407 | F9: 0 | G9: 0 | H9: Plat4 | I9: =0.456673298388817*60 -> 27.4003979 | J9: 29.04442178 | L9: Total général | M9: 352586.0215 | T9: 7 | U9: Plat6
A10: Drap ambulatoire | B10: 1397.802095 | C10: Kannegiesser | D10: 53 | E10: 0.001157407407 | F10: 0 | G10: 0 | H10: Plat4 | I10: =0.43905766043617*60 -> 26.34345963 | J10: 27.9240672 | T10: 8 | U10: Plat2
A11: drap bain | B11: 16717.42407 | C11: Kannegiesser | D11: 53 | E11: 0.001157407407 | F11: 5 | G11: 0.01875 | H11: Plat5 | I11: =0.24436610056176*60 -> 14.66196603 | J11: 15.541684 | T11: 9 | U11: Plat5
A12: drap bain luxe | B12: 995.6298556 | C12: Kannegiesser | D12: 53 | E12: 0.001157407407 | F12: 5 | G12: 0.01875 | H12: Plat5 | I12: =0.139212980163311*60 -> 8.35277881 | J12: 7.819068787 | T12: 10 | U12: Plat6
A13: drap bain spa | B13: 307.5727322 | C13: Kannegiesser | D13: 53 | E13: 0.001157407407 | F13: 5 | G13: 0.002083333333 | H13: Plat5 | I13: =0.158158978754953*60 -> 9.489538725 | J13: 7.184936463 | T13: 11
A14: drap grand GP | B14: 7194.329554 | C14: Kannegiesser | D14: 53 | E14: 0.001157407407 | F14: 0 | G14: 0 | H14: Plat3 | I14: =0.181701279221935 -> 0.1817012792 | J14: 10.59318458 | T14: 12
A15: drap grand M | B15: 2280.677821 | C15: Kannegiesser | D15: 53 | E15: 0.001157407407 | F15: 0 | G15: 0 | H15: Plat4 | I15: =0.243332418511138*60 -> 14.59994511 | J15: 15.47594182 | T15: 13
A16: drap housse | B16: 22937.18383 | C16: Kannegiesser | D16: 53 | E16: 0.001157407407 | F16: 2 | G16: 0.01597222222 | H16: Plat6 | I16: =0.3244786*60 -> 19.468716 | J16: 15.33022378 | T16: 14
A17: drap luxe | B17: 10.89780352 | C17: Kannegiesser | D17: 53 | E17: 0.001157407407 | F17: 0 | G17: 0 | H17: Plat3 | I17: =0.244771890027037*60 -> 14.6863134 | J17: 10.37832814 | T17: 15
A18: drap petit GP | B18: 36603.72038 | C18: Kannegiesser | D18: 53 | E18: 0.001157407407 | F18: 0 | G18: 0 | H18: Plat3 | I18: =0.237360850802149*60 -> 14.24165105 | J18: 15.09615011 | T18: 16
A19: drap petit M | B19: 8818.620906 | C19: Kannegiesser | D19: 53 | E19: 0.001157407407 | F19: 0 | G19: 0 | H19: Plat4 | I19: =0.328517525436063*60 -> 19.71105153 | J19: 20.89371462 | T19: 17
A20: grde al | B20: 596.777363 | C20: Kannegiesser | D20: 53 | E20: 0.001157407407 | F20: 0 | G20: 0 | H20: Plat4 | I20: =0.407919379842766*60 -> 24.47516279 | J20: 25.94367256 | T20: 18
A21: hous trav | B21: 4949.831097 | C21: Kannegiesser | D21: 53 | E21: 0.001157407407 | F21: 0 | G21: 0 | H21: Plat4 | I21: =1.04440884606766*60 -> 62.66453076 | J21: 66.42440261 | T21: 19
A22: housse couette GP | B22: 3572.477916 | C22: Kannegiesser | D22: 53 | E22: 0.001157407407 | F22: 0 | G22: 0 | H22: Plat3 | I22: =0.164944578036524*60 -> 9.896674682 | J22: 5.828041757 | T22: 20
A23: housse couette M | B23: 1900.56485 | C23: Kannegiesser | D23: 53 | E23: 0.001157407407 | F23: 0 | G23: 0 | H23: Plat4 | I23: =0.180729836751915*60 -> 10.84379021 | J23: 11.49441762 | T23: 21
A24: petite housse GP | B24: 2474.468611 | C24: Kannegiesser | D24: 53 | E24: 0.001157407407 | F24: 0 | G24: 0 | H24: Plat3 | I24: =0.228491833783136*60 -> 13.70951003 | J24: 9.284384846 | T24: 22
A25: petite housse M | B25: 1292.384098 | C25: Kannegiesser | D25: 53 | E25: 0.001157407407 | F25: 0 | G25: 0 | H25: Plat4 | I25: =0.25035858898998*60 -> 15.02151534 | J25: 15.92280626 | T25: 23
A26: pte al | B26: 6934.0208 | C26: Kannegiesser | D26: 53 | E26: 0.001157407407 | F26: 0 | G26: 0.003472222222 | H26: Plat4 | I26: =0.45048828924361*60 -> 27.02929735 | J26: 28.6510552 | T26: 24
A27: serv éponge | B27: 30640.5648 | C27: Kannegiesser | D27: 53 | E27: 0.001157407407 | F27: 5 | G27: 0.01597222222 | H27: Plat5 | I27: =0.442982983366293*60 -> 26.578979 | J27: 32.93031944 | T27: 25
A28: serv éponge luxe | B28: 373.0190336 | C28: Kannegiesser | D28: 53 | E28: 0.001157407407 | F28: 5 | G28: 0.008333333333 | H28: Plat5 | I28: =0.286006116910223*60 -> 17.16036701 | J28: 20.07985803 | T28: 26
A29: serv œil | B29: 394.820624 | C29: Kannegiesser | D29: 53 | E29: 0.001157407407 | F29: 0 | G29: 0.01875 | H29: Plat2 | I29: =0.726518479706937*60 -> 43.59110878 | J29: 60.23357139 | T29: 27
A30: tablier blanc | B30: 7609.353583 | C30: Kannegiesser | D30: 53 | E30: 0.001157407407 | F30: 2 | G30: 0.003472222222 | H30: Plat2 | I30: =0.4977482657529*60 -> 29.86489595 | J30: 22.61199264 | T30: 28
A31: tablier bleu | B31: 418.2072115 | C31: Kannegiesser | D31: 53 | E31: 0.001157407407 | F31: 2 | G31: 0.008333333333 | H31: Plat2 | I31: =0.598792391509242*60 -> 35.92754349 | J31: 26.52222586 | T31: 29
A32: tablier bret | B32: 1944.755246 | C32: Kannegiesser | D32: 53 | E32: 0.001157407407 | F32: 2 | G32: 0.002083333333 | H32: Plat2 | I32: =0.838168731084243*60 -> 50.29012387 | J32: 23.79800504 | T32: 30
A33: taie am | B33: 19607.13152 | C33: Kannegiesser | D33: 53 | E33: 0.001157407407 | F33: 1 | G33: 0.008333333333 | H33: Plat2 | I33: =0.987604761897998*60 -> 59.25628571 | J33: 62.81166286
A34: Taie Carrée | B34: 36290.02249 | C34: Kannegiesser | D34: 53 | E34: 0.001157407407 | F34: 1 | G34: 0.01597222222 | H34: Plat2 | I34: =0.710182800350491*60 -> 42.61096802 | J34: 45.1676261
A35: taie luxe | B35: 3043.924857 | C35: Kannegiesser | D35: 53 | E35: 0.001157407407 | F35: 1 | G35: 0.01875 | H35: Plat2 | I35: =0.844303091873078*60 -> 50.65818551 | J35: 46.98546706
A36: tapis bain | B36: 8363.937785 | C36: Kannegiesser | D36: 53 | E36: 0.001157407407 | F36: 5 | G36: 0.01875 | H36: Plat5 | I36: =0.413006116910223*60 -> 24.78036701 | J36: 29.81336101
A37: tapis bain luxe | B37: 273.4809326 | C37: Kannegiesser | D37: 53 | E37: 0.001157407407 | F37: 5 | G37: 0.01597222222 | H37: Plat5 | I37: =0.283006116910223*60 -> 16.98036701 | J37: 19.37221072
A38: torchon | B38: 22701.49804 | C38: Kannegiesser | D38: 53 | E38: 0.001157407407 | F38: 1 | G38: 0.008333333333 | H38: Plat2 | I38: =0.992790005426558*60 -> 59.56740033 | J38: 96.9672181
A39: VT | B39: 44662.5245 | C39: Kannegiesser | D39: 53 | E39: 0.001157407407 | F39: 0 | G39: 0 | H39: Plat6 | I39: =0.05*60 -> 3 | J39: 9.085714286
A40: VT Séché TF | B40: 44662.5245 | C40: Kannegiesser | D40: 53 | E40: 0.001157407407 | F40: 0 | G40: 0.008333333333 | H40: Plat6 | I40: =0.05*60 -> 3 | J40: 9.085714286

Sheet Interface
A1: UniteLavage | B1: 50 | X1: Tonnage Calandre | Z1: Approvisionnement | AG1: Familles | AH1: Tonnage (kg) | AI1: lavage | AJ1: Unité de lavage (Kg) | AK1: TcycleL en min | AL1: Séchoir | AM1: TcycleS en min | AN1: Calandre | AO1: TcycleC en min | AP1: TempsTraitement (min) | AQ1: Nouveau Tonnage | AR1: Tonnage (kg) | AS1: Graphique | AU1: Séchoirs
A2: TempsBoucle | B2: 10 | X2: Plat1 | Z2: Plat1 | AA2: Plat1 | AB2: Plat1 | AC2: Plat1 | AD2: Plat1 | AE2: Plat1 | AG2: alése abs PE | AH2: 970.4964851 | AI2: Kannegiesser | AJ2: 53 | AK2: 0.001157407407 | AL2: 2 | AM2: 0.01597222222 | AN2: Plat5 | AO2: =0.180772645772899*60 -> 10.84635875 | AP2: 10.60125921 | AR2: 970.4964851 | AU2: 0
A3: Tonnage Tunel | AG3: alése abs PM | AH3: 2078.29614 | AI3: Kannegiesser | AJ3: 53 | AK3: 0.001157407407 | AL3: 2 | AM3: 0.01597222222 | AN3: Plat6 | AO3: =0.180772645772899*60 -> 10.84635875 | AP3: 15.23389385 | AR3: 2078.29614
A4: Tonnage semaine | B4: 2000 | X4: Plat2 | Z4: Plat2 | AA4: Plat2 | AB4: Plat2 | AC4: Plat2 | AD4: Plat2 | AE4: Plat2 | AG4: Bavoir | AH4: 2107.719289 | AI4: Kannegiesser | AJ4: 53 | AK4: 0.001157407407 | AL4: 2 | AM4: 0.01597222222 | AN4: Plat5 | AO4: =0.6432684514067*60 -> 38.59610708 | AP4: 36.12996622 | AR4: 2107.719289 | AU4: 1
O5: Tunel | AG5: chmal PE | AH5: 1567.725091 | AI5: Kannegiesser | AJ5: 53 | AK5: 0.001157407407 | AL5: 2 | AM5: 0.01597222222 | AN5: Plat5 | AO5: =1.08175626590084*60 -> 64.90537595 | AP5: 17.87005156 | AR5: 1567.725091
A6: Cadensement | O6: M14 | P6: M15 | Q6: M16 | R6: M17 | S6: M18 | T6: P | X6: Plat3 | Z6: Plat3 | AA6: Plat3 | AB6: Plat3 | AC6: Plat3 | AD6: Plat3 | AE6: Plat3 | AG6: chmal PM | AH6: 4991.781488 | AI6: Kannegiesser | AJ6: 53 | AK6: 0.001157407407 | AL6: 2 | AM6: 0.01597222222 | AN6: Plat6 | AO6: =0.2395266*60 -> 14.371596 | AP6: 25.67906917 | AR6: 4991.781488 | AU6: 2
A7: Plat2 | AF7: Ligne 35 | AG7: chp grd | AH7: 52.20218123 | AI7: Kannegiesser | AJ7: 53 | AK7: 0.001157407407 | AL7: 0 | AM7: 0 | AN7: Plat4 | AO7: =0.671067724684033*60 -> 40.26406348 | AP7: 42.67990729 | AR7: 52.20218123
A8: Plat5 | X8: Plat4 | Z8: Plat4 | AA8: Plat4 | AB8: Plat4 | AC8: Plat4 | AD8: Plat4 | AE8: Plat4 | AF8: Ligne 28 | AG8: chp petit | AH8: 187.0155813 | AI8: Kannegiesser | AJ8: 53 | AK8: 0.001157407407 | AL8: 0 | AM8: 0 | AN8: Plat4 | AO8: =1.11755420367565*60 -> 67.05325222 | AP8: 71.07644735 | AR8: 187.0155813 | AU8: 3
A9: Plat3 | AF9: Ligne 14 | AG9: drap 1/2 | AH9: 660.636342 | AI9: Kannegiesser | AJ9: 53 | AK9: 0.001157407407 | AL9: 0 | AM9: 0 | AN9: Plat4 | AO9: =0.456673298388817*60 -> 27.4003979 | AP9: 29.04442178 | AR9: 660.636342
A10: Plat4 | X10: Plat5 | Z10: Plat5 | AA10: Plat5 | AB10: Plat5 | AC10: Plat5 | AD10: Plat5 | AE10: Plat5 | AF10: Ligne 25 | AG10: Drap ambulatoire | AH10: 1397.802095 | AI10: Kannegiesser | AJ10: 53 | AK10: 0.001157407407 | AL10: 0 | AM10: 0 | AN10: Plat4 | AO10: =0.43905766043617*60 -> 26.34345963 | AP10: 27.9240672 | AR10: 1397.802095 | AU10: 4
A11: Plat5 | T11: 2000 | AF11: Ligne 11 | AG11: drap bain | AH11: 16717.42407 | AI11: Kannegiesser | AJ11: 53 | AK11: 0.001157407407 | AL11: 5 | AM11: 0.01875 | AN11: Plat5 | AO11: =0.24436610056176*60 -> 14.66196603 | AP11: 15.541684 | AR11: 16717.42407
A12: Plat6 | X12: Plat6 | Z12: Plat6 | AA12: Plat6 | AB12: Plat6 | AC12: Plat6 | AD12: Plat6 | AE12: Plat6 | AF12: Ligne 16 | AG12: drap bain luxe | AH12: 995.6298556 | AI12: Kannegiesser | AJ12: 53 | AK12: 0.001157407407 | AL12: 5 | AM12: 0.01875 | AN12: Plat5 | AO12: =0.139212980163311*60 -> 8.35277881 | AP12: 7.819068787 | AR12: 995.6298556 | AU12: 5
A13: Plat6 | AF13: Ligne 39 | AG13: drap bain spa | AH13: 307.5727322 | AI13: Kannegiesser | AJ13: 53 | AK13: 0.001157407407 | AL13: 5 | AM13: 0.002083333333 | AN13: Plat5 | AO13: =0.158158978754953*60 -> 9.489538725 | AP13: 7.184936463 | AR13: 307.5727322
A14: Plat2 | X14: Plat7 | Z14: Plat7 | AA14: Plat7 | AB14: Plat7 | AC14: Plat7 | AD14: Plat7 | AE14: Plat7 | AF14: Ligne 29 | AG14: drap grand GP | AH14: 7194.329554 | AI14: Kannegiesser | AJ14: 53 | AK14: 0.001157407407 | AL14: 0 | AM14: 0 | AN14: Plat3 | AO14: =0.181701279221935 -> 0.1817012792 | AP14: 10.59318458 | AR14: 7194.329554 | AU14: 6
A15: Plat5 | AF15: Ligne 13 | AG15: drap grand M | AH15: 2280.677821 | AI15: Kannegiesser | AJ15: 53 | AK15: 0.001157407407 | AL15: 0 | AM15: 0 | AN15: Plat4 | AO15: =0.243332418511138*60 -> 14.59994511 | AP15: 15.47594182 | AR15: 2280.677821
A16: Plat6 | X16: Plat8 | Z16: Plat8 | AA16: Plat8 | AB16: Plat8 | AC16: Plat8 | AD16: Plat8 | AE16: Plat8 | AF16: Ligne 6 | AG16: drap housse | AH16: 22937.18383 | AI16: Kannegiesser | AJ16: 53 | AK16: 0.001157407407 | AL16: 2 | AM16: 0.01597222222 | AN16: Plat6 | AO16: =0.3244786*60 -> 19.468716 | AP16: 15.33022378 | AR16: 22937.18383 | AU16: 7
AG17: drap luxe | AH17: 10.89780352 | AI17: Kannegiesser | AJ17: 53 | AK17: 0.001157407407 | AL17: 0 | AM17: 0 | AN17: Plat3 | AO17: =0.244771890027037*60 -> 14.6863134 | AP17: 10.37832814 | AR17: 10.89780352
X18: Plat9 | Z18: Plat9 | AA18: Plat9 | AB18: Plat9 | AC18: Plat9 | AD18: Plat9 | AE18: Plat9 | AG18: drap petit GP | AH18: 36603.72038 | AI18: Kannegiesser | AJ18: 53 | AK18: 0.001157407407 | AL18: 0 | AM18: 0 | AN18: Plat3 | AO18: =0.237360850802149*60 -> 14.24165105 | AP18: 15.09615011 | AR18: 36603.72038 | AU18: 8
AG19: drap petit M | AH19: 8818.620906 | AI19: Kannegiesser | AJ19: 53 | AK19: 0.001157407407 | AL19: 0 | AM19: 0 | AN19: Plat4 | AO19: =0.328517525436063*60 -> 19.71105153 | AP19: 20.89371462 | AR19: 8818.620906
X20: Plat10 | Z20: Plat10 | AA20: Plat10 | AB20: Plat10 | AC20: Plat10 | AD20: Plat10 | AE20: Plat10 | AG20: grde al | AH20: 596.777363 | AI20: Kannegiesser | AJ20: 53 | AK20: 0.001157407407 | AL20: 0 | AM20: 0 | AN20: Plat4 | AO20: =0.407919379842766*60 -> 24.47516279 | AP20: 25.94367256 | AR20: 596.777363 | AU20: 9
AG21: hous trav | AH21: 4949.831097 | AI21: Kannegiesser | AJ21: 53 | AK21: 0.001157407407 | AL21: 0 | AM21: 0 | AN21: Plat4 | AO21: =1.04440884606766*60 -> 62.66453076 | AP21: 66.42440261 | AR21: 4949.831097
X22: Plat11 | Z22: Plat11 | AA22: Plat11 | AB22: Plat11 | AC22: Plat11 | AD22: Plat11 | AE22: Plat11 | AG22: housse couette GP | AH22: 3572.477916 | AI22: Kannegiesser | AJ22: 53 | AK22: 0.001157407407 | AL22: 0 | AM22: 0 | AN22: Plat3 | AO22: =0.164944578036524*60 -> 9.896674682 | AP22: 5.828041757 | AR22: 3572.477916 | AU22: 10
AG23: housse couette M | AH23: 1900.56485 | AI23: Kannegiesser | AJ23: 53 | AK23: 0.001157407407 | AL23: 0 | AM23: 0 | AN23: Plat4 | AO23: =0.180729836751915*60 -> 10.84379021 | AP23: 11.49441762 | AR23: 1900.56485
X24: Plat12 | Z24: Plat12 | AA24: Plat12 | AB24: Plat12 | AC24: Plat12 | AD24: Plat12 | AE24: Plat12 | AG24: petite housse GP | AH24: 2474.468611 | AI24: Kannegiesser | AJ24: 53 | AK24: 0.001157407407 | AL24: 0 | AM24: 0 | AN24: Plat3 | AO24: =0.228491833783136*60 -> 13.70951003 | AP24: 9.284384846 | AR24: 2474.468611
AG25: petite housse M | AH25: 1292.384098 | AI25: Kannegiesser | AJ25: 53 | AK25: 0.001157407407 | AL25: 0 | AM25: 0 | AN25: Plat4 | AO25: =0.25035858898998*60 -> 15.02151534 | AP25: 15.92280626 | AR25: 1292.384098
X26: Plat13 | Z26: Plat13 | AA26: Plat13 | AB26: Plat13 | AC26: Plat13 | AD26: Plat13 | AE26: Plat13 | AG26: pte al | AH26: 6934.0208 | AI26: Kannegiesser | AJ26: 53 | AK26: 0.001157407407 | AL26: 0 | AM26: 0.003472222222 | AN26: Plat4 | AO26: =0.45048828924361*60 -> 27.02929735 | AP26: 28.6510552 | AR26: 6934.0208
AG27: serv éponge | AH27: 30640.5648 | AI27: Kannegiesser | AJ27: 53 | AK27: 0.001157407407 | AL27: 5 | AM27: 0.01597222222 | AN27: Plat5 | AO27: =0.442982983366293*60 -> 26.578979 | AP27: 32.93031944 | AR27: 30640.5648
X28: Plat14 | Z28: Plat14 | AA28: Plat14 | AB28: Plat14 | AC28: Plat14 | AD28: Plat14 | AE28: Plat14 | AG28: serv éponge luxe | AH28: 373.0190336 | AI28: Kannegiesser | AJ28: 53 | AK28: 0.001157407407 | AL28: 5 | AM28: 0.008333333333 | AN28: Plat5 | AO28: =0.286006116910223*60 -> 17.16036701 | AP28: 20.07985803 | AR28: 373.0190336
AG29: serv œil | AH29: 394.820624 | AI29: Kannegiesser | AJ29: 53 | AK29: 0.001157407407 | AL29: 0 | AM29: 0.01875 | AN29: Plat2 | AO29: =0.726518479706937*60 -> 43.59110878 | AP29: 60.23357139 | AR29: 394.820624
X30: Plat15 | Z30: Plat15 | AA30: Plat15 | AB30: Plat15 | AC30: Plat15 | AD30: Plat15 | AE30: Plat15 | AG30: tablier blanc | AH30: 7609.353583 | AI30: Kannegiesser | AJ30: 53 | AK30: 0.001157407407 | AL30: 2 | AM30: 0.003472222222 | AN30: Plat2 | AO30: =0.4977482657529*60 -> 29.86489595 | AP30: 22.61199264 | AR30: 7609.353583
AG31: tablier bleu | AH31: 418.2072115 | AI31: Kannegiesser | AJ31: 53 | AK31: 0.001157407407 | AL31: 2 | AM31: 0.008333333333 | AN31: Plat2 | AO31: =0.598792391509242*60 -> 35.92754349 | AP31: 26.52222586 | AR31: 418.2072115
X32: Plat16 | Z32: Plat16 | AA32: Plat16 | AB32: Plat16 | AC32: Plat16 | AD32: Plat16 | AE32: Plat16 | AG32: tablier bret | AH32: 1944.755246 | AI32: Kannegiesser | AJ32: 53 | AK32: 0.001157407407 | AL32: 2 | AM32: 0.002083333333 | AN32: Plat2 | AO32: =0.838168731084243*60 -> 50.29012387 | AP32: 23.79800504 | AR32: 1944.755246
AG33: taie am | AH33: 19607.13152 | AI33: Kannegiesser | AJ33: 53 | AK33: 0.001157407407 | AL33: 1 | AM33: 0.008333333333 | AN33: Plat2 | AO33: =0.987604761897998*60 -> 59.25628571 | AP33: 62.81166286 | AR33: 19607.13152
AG34: Taie Carrée | AH34: 36290.02249 | AI34: Kannegiesser | AJ34: 53 | AK34: 0.001157407407 | AL34: 1 | AM34: 0.01597222222 | AN34: Plat2 | AO34: =0.710182800350491*60 -> 42.61096802 | AP34: 45.1676261 | AR34: 36290.02249
AG35: taie luxe | AH35: 3043.924857 | AI35: Kannegiesser | AJ35: 53 | AK35: 0.001157407407 | AL35: 1 | AM35: 0.01875 | AN35: Plat2 | AO35: =0.844303091873078*60 -> 50.65818551 | AP35: 46.98546706 | AR35: 3043.924857
AG36: tapis bain | AH36: 8363.937785 | AI36: Kannegiesser | AJ36: 53 | AK36: 0.001157407407 | AL36: 5 | AM36: 0.01875 | AN36: Plat5 | AO36: =0.413006116910223*60 -> 24.78036701 | AP36: 29.81336101 | AR36: 8363.937785
AG37: tapis bain luxe | AH37: 273.4809326 | AI37: Kannegiesser | AJ37: 53 | AK37: 0.001157407407 | AL37: 5 | AM37: 0.01597222222 | AN37: Plat5 | AO37: =0.283006116910223*60 -> 16.98036701 | AP37: 19.37221072 | AR37: 273.4809326
AG38: torchon | AH38: 22701.49804 | AI38: Kannegiesser | AJ38: 53 | AK38: 0.001157407407 | AL38: 1 | AM38: 0.008333333333 | AN38: Plat2 | AO38: =0.992790005426558*60 -> 59.56740033 | AP38: 96.9672181 | AR38: 22701.49804
AG39: VT | AH39: 44662.5245 | AI39: Kannegiesser | AJ39: 53 | AK39: 0.001157407407 | AL39: 0 | AM39: 0 | AN39: Plat6 | AO39: =0.05*60 -> 3 | AP39: 9.085714286 | AR39: 44662.5245
AG40: VT Séché TF | AH40: 44662.5245 | AI40: Kannegiesser | AJ40: 53 | AK40: 0.001157407407 | AL40: 0 | AM40: 0.008333333333 | AN40: Plat6 | AO40: =0.05*60 -> 3 | AP40: 9.085714286 | AR40: 44662.5245
P65006: 53

Sheet Feuil1
A1: =IF(NOT(ISBLANK(F7)),INDEX($H13:$H1048576,ROUNDUP(RAND()*COUNTA($H13:$H1048576),0),1)) -> FALSE

Sheet Feuil2 (hidden)
A5: UL | B5: 53 | O5: Tunel
O6: M14 | P6: M15 | Q6: M16 | R6: M17 | S6: M18 | T6: P
A7: Plat2
A8: Plat5 | O8: 53
A9: Plat3
A10: Plat4
A11: Plat5
A12: Plat6
A13: Plat6
A14: Plat2
A15: Plat5
A16: Plat6
